fUSD/lending_fUSD_20260621
["ID","MTS","AMOUNT","RATE_DAILY","PERIOD"]
[425850906,1781994634000,-70713.09326249,0.00013927,2]
[425850902,1781994634000,-318.0,0.00013898,2]
[425850903,1781994634000,-1299.7287,0.000139,2]
[425850901,1781994634000,-150.0,0.00013898,2]
[425850900,1781994634000,-309.0,0.00013898,2]
[425850898,1781994634000,-319.0,0.00013898,2]
[425850909,1781994634000,-2217.8025301,0.00013927,2]
[425850897,1781994634000,-151.0,0.00013898,2]
[425850888,1781994634000,-150.0,0.00013897,2]
[425850899,1781994634000,-317.0,0.00013898,2]
[425850893,1781994634000,-153.0,0.00013898,2]
[425850894,1781994634000,-317.0,0.00013898,2]
[425850892,1781994634000,-151.0,0.00013898,2]
[425850890,1781994634000,-151.0,0.00013898,2]
[425850891,1781994634000,-151.0,0.00013898,2]
[425850889,1781994634000,-151.0,0.00013898,2]
[425850895,1781994634000,-225.37620566,0.00013898,2]
[425850896,1781994634000,-310.0,0.00013898,2]
[425850887,1781994634000,-160.0,0.00013883,2]
[425850922,1781994638000,-249.26853572,0.00013927,2]
[425850921,1781994638000,-160.0,0.00013883,2]
[425850941,1781994653000,-1500.72315484,0.00013927,2]
[425850963,1781994654000,-500.0,0.00014749,2]
[425850969,1781994654000,-207.08937098,0.0001518,2]
[425850964,1781994654000,-500.0,0.00014749,2]
[425850962,1781994654000,-500.0,0.00014749,2]
[425850966,1781994654000,-500.0,0.00014749,2]
[425850967,1781994654000,-350.79892532,0.00014999,2]
[425850976,1781994654000,-2306.9077665,0.00015725,2]
[425850975,1781994654000,-167.56,0.00015411,2]
[425850968,1781994654000,-177.58,0.00015085,2]
[425850974,1781994654000,-300.06717808,0.0001518,2]
[425850973,1781994654000,-250.0,0.0001518,2]
[425850970,1781994654000,-193.0,0.0001518,2]
[425850972,1781994654000,-228.56897717,0.0001518,2]
[425850971,1781994654000,-600.0,0.0001518,2]
[425850960,1781994654000,-506.69512893,0.00014339,2]
[425850965,1781994654000,-500.0,0.00014749,2]
[425850959,1781994654000,-500.0,0.00014339,2]
[425850944,1781994654000,-47243.74069238,0.00013927,2]
[425850958,1781994654000,-500.0,0.00014339,2]
[425850977,1781994654000,-300.0,0.00016,2]
[425850943,1781994654000,-1347.00125038,0.00013927,2]
[425850946,1781994654000,-738.844305,0.00014,2]
[425850942,1781994654000,-152.0,0.00013803,2]
[425850945,1781994654000,-183.0,0.00013998,2]
[425850947,1781994654000,-184.709077,0.00014,2]
[425850951,1781994654000,-35029.5384,0.0001414,2]
[425850949,1781994654000,-250.0,0.00014,2]
[425850950,1781994654000,-166.66,0.00014067,2]
[425850952,1781994654000,-1470.665,0.00014239,2]
[425850953,1781994654000,-325728.6586,0.0001424,2]
[425850956,1781994654000,-400.0,0.00014318,2]
[425850954,1781994654000,-200.0,0.00014255,2]
[425850957,1781994654000,-500.0,0.00014339,2]
[425850955,1781994654000,-217.68536206,0.00014268,2]
[425850961,1781994654000,-1000.0,0.00014345,2]
[425850978,1781994654000,-157.3509639,0.00016,2]
[425850948,1781994654000,-230.868345,0.00014,2]
[425850980,1781994654000,-400.0,0.00016108,2]
[425851000,1781994654000,-383.0,0.00017575,2]
[425851006,1781994654000,-167.56,0.00017955,2]
[425851011,1781994654000,-9999.99,0.00019339,2]
[425851004,1781994654000,-2306.9077665,0.00017598,2]
[425851003,1781994654000,-3647.0,0.00017575,2]
[425851002,1781994654000,-6081.0,0.00017575,2]
[425851005,1781994654000,-400.0,0.00017898,2]
[425851009,1781994654000,-182.63,0.000188,7]
[425851008,1781994654000,-151.5,0.00018756,2]
[425851015,1781994654000,-184.0,0.0002,2]
[425851007,1781994654000,-350.0,0.00018,2]
[425851013,1781994654000,-400.0,0.00019688,2]
[425851012,1781994654000,-2306.9077665,0.00019471,2]
[425851014,1781994654000,-400.0,0.0002,2]
[425850983,1781994654000,-500.0,0.00016438,2]
[425851001,1781994654000,-1229.0,0.00017575,2]
[425850995,1781994654000,-500.0,0.00016438,2]
[425851010,1781994654000,-436.27,0.00019339,2]
[425850996,1781994654000,-500.0,0.00016438,2]
[425850994,1781994654000,-609.02071776,0.00016438,2]
[425850984,1781994654000,-500.0,0.00016438,2]
[425850979,1781994654000,-157.3509639,0.000161,2]
[425850982,1781994654000,-500.0,0.00016438,2]
[425850986,1781994654000,-500.0,0.00016438,2]
[425850985,1781994654000,-500.0,0.00016438,2]
[425850987,1781994654000,-500.0,0.00016438,2]
[425850988,1781994654000,-500.0,0.00016438,2]
[425850981,1781994654000,-553.65,0.00016438,2]
[425850999,1781994654000,-167.56,0.00016683,2]
[425850989,1781994654000,-500.0,0.00016438,2]
[425850991,1781994654000,-500.0,0.00016438,2]
[425850990,1781994654000,-500.0,0.00016438,2]
[425850993,1781994654000,-500.0,0.00016438,2]
[425850992,1781994654000,-500.0,0.00016438,2]
[425850998,1781994654000,-391.04,0.000166,2]
[425850997,1781994654000,-644.53,0.00016448,2]
[425851053,1781994655000,-151.0,0.00021408,2]
[425851052,1781994655000,-500.0,0.00021408,2]
[425851054,1781994655000,-151.0,0.00021408,2]
[425851051,1781994655000,-500.0,0.00021408,2]
[425851048,1781994655000,-500.0,0.00021408,2]
[425851047,1781994655000,-500.0,0.00021408,2]
[425851049,1781994655000,-151.0,0.00021408,2]
[425851046,1781994655000,-151.0,0.00021408,2]
[425851055,1781994655000,-500.0,0.00021408,2]
[425851057,1781994655000,-151.0,0.00021408,2]
[425851056,1781994655000,-500.0,0.00021408,2]
[425851050,1781994655000,-151.0,0.00021408,2]
[425851061,1781994655000,-151.0,0.00021408,2]
[425851067,1781994655000,-500.0,0.00021408,2]
[425851063,1781994655000,-500.0,0.00021408,2]
[425851060,1781994655000,-500.0,0.00021408,2]
[425851058,1781994655000,-151.0,0.00021408,2]
[425851062,1781994655000,-151.0,0.00021408,2]
[425851065,1781994655000,-151.0,0.00021408,2]
[425851068,1781994655000,-500.0,0.00021408,2]
[425851066,1781994655000,-151.0,0.00021408,2]
[425851070,1781994655000,-151.0,0.00021408,2]
[425851080,1781994655000,-151.0,0.00021408,2]
[425851071,1781994655000,-500.0,0.00021408,2]
[425851072,1781994655000,-500.0,0.00021408,2]
[425851044,1781994655000,-151.0,0.00021408,2]
[425851059,1781994655000,-500.0,0.00021408,2]
[425851045,1781994655000,-500.0,0.00021408,2]
[425851026,1781994655000,-184.0,0.00021,2]
[425851041,1781994655000,-151.0,0.00021408,2]
[425851016,1781994655000,-184.0,0.0002,2]
[425851021,1781994655000,-159.0,0.00020192,5]
[425851017,1781994655000,-508.0,0.0002,2]
[425851020,1781994655000,-385.0,0.0002,2]
[425851018,1781994655000,-4508.06,0.0002,2]
[425851022,1781994655000,-383.0,0.00020575,2]
[425851019,1781994655000,-150.48531384,0.0002,20]
[425851023,1781994655000,-1229.0,0.00020575,2]
[425851030,1781994655000,-1000.0,0.000214,2]
[425851025,1781994655000,-3647.0,0.00020575,2]
[425851073,1781994655000,-151.0,0.00021408,2]
[425851027,1781994655000,-184.0,0.00021,2]
[425851039,1781994655000,-151.0,0.00021408,2]
[425851024,1781994655000,-6081.0,0.00020575,2]
[425851029,1781994655000,-2306.9077665,0.00021344,2]
[425851032,1781994655000,-310.0,0.000214,2]
[425851031,1781994655000,-316.0,0.000214,2]
[425851033,1781994655000,-151.0,0.00021408,2]
[425851038,1781994655000,-151.0,0.00021408,2]
[425851035,1781994655000,-151.0,0.00021408,2]
[425851043,1781994655000,-151.0,0.00021408,2]
[425851034,1781994655000,-151.0,0.00021408,2]
[425851042,1781994655000,-500.0,0.00021408,2]
[425851040,1781994655000,-500.0,0.00021408,2]
[425851037,1781994655000,-151.0,0.00021408,2]
[425851036,1781994655000,-578.20924308,0.00021408,2]
[425851028,1781994655000,-385.0,0.00021,2]
[425851069,1781994655000,-151.0,0.00021408,2]
[425851064,1781994655000,-500.0,0.00021408,2]
[425851076,1781994655000,-500.0,0.00021408,2]
[425851109,1781994655000,-508.0,0.00023077,4]
[425851110,1781994655000,-184.701076,0.00023097,7]
[425851108,1781994655000,-385.0,0.00023,2]
[425851118,1781994655000,-150.0,0.00023667,2]
[425851107,1781994655000,-184.0,0.00023,2]
[425851111,1781994655000,-2306.9077665,0.00023216,2]
[425851112,1781994655000,-1591.1,0.00023229,7]
[425851114,1781994655000,-383.0,0.00023575,2]
[425851115,1781994655000,-1229.0,0.00023575,2]
[425851113,1781994655000,-870.0,0.00023532,7]
[425851116,1781994655000,-6081.0,0.00023575,2]
[425851117,1781994655000,-3647.0,0.00023575,2]
[425851120,1781994655000,-184.0,0.00024,2]
[425851131,1781994655000,-189.0,0.00025,2]
[425851130,1781994655000,-150.0,0.0002485,2]
[425851119,1781994655000,-500.0,0.00024,2]
[425851121,1781994655000,-184.0,0.00024,2]
[425851122,1781994655000,-385.0,0.00024,2]
[425851124,1781994655000,-508.0,0.00024615,6]
[425851123,1781994655000,-599.60298507,0.00024147,2]
[425851126,1781994655000,-1000.0,0.00024658,2]
[425851125,1781994655000,-558.6,0.00024627,7]
[425851074,1781994655000,-151.0,0.00021408,2]
[425851127,1781994655000,-176.57,0.00024658,2]
[425851128,1781994655000,-185.98,0.00024658,2]
[425851132,1781994655000,-193.0,0.00025,2]
[425851133,1781994655000,-389.0,0.00025,2]
[425851106,1781994655000,-184.0,0.00023,2]
[425851098,1781994655000,-184.0,0.00022,2]
[425851129,1781994655000,-185.67,0.00024658,2]
[425851096,1781994655000,-5000.0,0.00021918,2]
[425851100,1781994655000,-1982.09,0.00022,2]
[425851075,1781994655000,-500.0,0.00021408,2]
[425851079,1781994655000,-500.0,0.00021408,2]
[425851077,1781994655000,-151.0,0.00021408,2]
[425851082,1781994655000,-151.0,0.00021408,2]
[425851081,1781994655000,-500.0,0.00021408,2]
[425851084,1781994655000,-151.0,0.00021408,2]
[425851083,1781994655000,-500.0,0.00021408,2]
[425851091,1781994655000,-151.0,0.00021628,2]
[425851088,1781994655000,-508.0,0.00021538,3]
[425851089,1781994655000,-151.0,0.00021573,2]
[425851090,1781994655000,-2396.74,0.00021615,2]
[425851085,1781994655000,-151.0,0.00021463,2]
[425851078,1781994655000,-151.0,0.00021408,2]
[425851093,1781994655000,-151.0,0.00021738,2]
[425851086,1781994655000,-400.0,0.00021477,2]
[425851099,1781994655000,-184.0,0.00022,2]
[425851103,1781994655000,-157.42621077,0.00022407,2]
[425851101,1781994655000,-385.0,0.00022,2]
[425851097,1781994655000,-450.0,0.00022,2]
[425851094,1781994655000,-151.0,0.00021793,2]
[425851104,1781994655000,-157.42621077,0.00022407,2]
[425851095,1781994655000,-280.49278348,0.00021848,2]
[425851105,1781994655000,-150.0,0.0002254,2]
[425851092,1781994655000,-151.0,0.00021683,2]
[425851087,1781994655000,-151.0,0.00021518,2]
[425851102,1781994655000,-157.42621078,0.00022407,2]
[425851170,1781994656000,-202.83,0.00027711,7]
[425851169,1781994656000,-200.25,0.00027711,7]
[425851167,1781994656000,-508.0,0.00027692,9]
[425851157,1781994656000,-229.51988224,0.00027397,2]
[425851163,1781994656000,-200.25,0.0002755,30]
[425851161,1781994656000,-500.0,0.000275,7]
[425851164,1781994656000,-185.98,0.0002755,2]
[425851168,1781994656000,-467.53,0.00027711,7]
[425851160,1781994656000,-789.29865658,0.000275,2]
[425851165,1781994656000,-185.67,0.0002755,2]
[425851162,1781994656000,-467.53,0.0002755,30]
[425851175,1781994656000,-165.3,0.00027912,2]
[425851173,1781994656000,-200.25,0.00027872,2]
[425851174,1781994656000,-202.83,0.00027872,2]
[425851177,1781994656000,-467.53,0.00028033,30]
[425851172,1781994656000,-467.53,0.00027872,2]
[425851176,1781994656000,-662.0,0.00027918,2]
[425851179,1781994656000,-202.83,0.00028033,30]
[425851189,1781994656000,-202.83,0.00028194,7]
[425851178,1781994656000,-200.25,0.00028033,30]
[425851159,1781994656000,-150.0,0.00027398,2]
[425851180,1781994656000,-165.3,0.00028093,30]
[425851171,1781994656000,-165.3,0.00027731,7]
[425851158,1781994656000,-4540.46,0.00027397,10]
[425851154,1781994656000,-193.13,0.00027384,2]
[425851156,1781994656000,-1500.0,0.00027397,2]
[425851181,1781994656000,-1101.98347543,0.000281,2]
[425851141,1781994656000,-150.0,0.00026093,2]
[425851142,1781994656000,-508.0,0.00026154,7]
[425851134,1781994656000,-662.69945794,0.00025249,2]
[425851135,1781994656000,-201.30179282,0.00025324,2]
[425851140,1781994656000,-1209.3345,0.00026056,14]
[425851139,1781994656000,-893.79389062,0.00026056,14]
[425851138,1781994656000,-597.47969488,0.00026056,14]
[425851137,1781994656000,-338.68455177,0.00026056,14]
[425851136,1781994656000,-200.0,0.00025349,2]
[425851166,1781994656000,-165.3,0.0002755,30]
[425851143,1781994656000,-547.9,0.000262,14]
[425851146,1781994656000,-383.0,0.00026575,2]
[425851149,1781994656000,-288.95,0.00026691,2]
[425851151,1781994656000,-185.98,0.00026829,7]
[425851147,1781994656000,-6081.0,0.00026575,2]
[425851153,1781994656000,-621.78829552,0.00026886,2]
[425851150,1781994656000,-183.76,0.00026829,7]
[425851145,1781994656000,-332.928419,0.00026452,2]
[425851148,1781994656000,-3647.0,0.00026575,2]
[425851152,1781994656000,-185.67,0.00026829,7]
[425851155,1781994656000,-188.92782869,0.00027397,2]
[425851144,1781994656000,-164.624921,0.00026433,2]
[425851182,1781994656000,-1101.98347542,0.000281,2]
[425851186,1781994656000,-185.68,0.0002813,7]
[425851188,1781994656000,-200.25,0.00028194,7]
[425851204,1781994656000,-229.51988224,0.00028766,2]
[425851209,1781994656000,-156.0,0.00028881,30]
[425851215,1781994656000,-184.0,0.00028894,30]
[425851216,1781994656000,-151.0,0.00028894,30]
[425851218,1781994656000,-184.0,0.00028894,30]
[425851217,1781994656000,-151.0,0.00028894,30]
[425851219,1781994656000,-152.0,0.00028894,30]
[425851221,1781994656000,-467.54,0.00029,30]
[425851220,1781994656000,-160.0,0.00028894,30]
[425851223,1781994656000,-1111.11,0.00029,30]
[425851206,1781994656000,-467.53,0.00028838,2]
[425851222,1781994656000,-200.33,0.00029,30]
[425851226,1781994656000,-508.0,0.00029231,10]
[425851224,1781994656000,-662.69945794,0.00029013,2]
[425851227,1781994656000,-1111.11,0.00029275,30]
[425851228,1781994656000,-1111.11,0.00029413,30]
[425851229,1781994656000,-226.73544188,0.00029475,2]
[425851231,1781994656000,-151.0,0.00029556,2]
[425851232,1781994656000,-151.0,0.00029556,2]
[425851230,1781994656000,-1111.11,0.0002955,30]
[425851234,1781994656000,-383.0,0.00029575,2]
[425851184,1781994656000,-201.30179282,0.00028116,2]
[425851225,1781994656000,-1111.11,0.00029138,30]
[425851207,1781994656000,-200.25,0.00028838,2]
[425851233,1781994656000,-151.92,0.00029562,2]
[425851205,1781994656000,-150.0,0.00028767,2]
[425851208,1781994656000,-153.0,0.00028876,30]
[425851235,1781994656000,-6081.0,0.00029575,2]
[425851185,1781994656000,-185.98,0.0002813,7]
[425851187,1781994656000,-467.53,0.00028194,7]
[425851190,1781994656000,-266.78065313,0.000282,2]
[425851191,1781994656000,-266.78065313,0.000282,2]
[425851194,1781994656000,-467.53,0.00028355,2]
[425851201,1781994656000,-200.25,0.00028516,30]
[425851192,1781994656000,-266.78065313,0.000282,2]
[425851193,1781994656000,-165.3,0.00028275,7]
[425851195,1781994656000,-200.25,0.00028355,2]
[425851183,1781994656000,-1101.98347542,0.000281,2]
[425851196,1781994656000,-202.83,0.00028355,2]
[425851199,1781994656000,-1250.2,0.000285,7]
[425851212,1781994656000,-385.0,0.00028881,30]
[425851211,1781994656000,-155.0,0.00028881,30]
[425851202,1781994656000,-467.53,0.00028677,7]
[425851214,1781994656000,-155.0,0.00028894,30]
[425851203,1781994656000,-200.25,0.00028677,7]
[425851197,1781994656000,-20965.16,0.000285,7]
[425851198,1781994656000,-6866.59,0.000285,7]
[425851200,1781994656000,-467.53,0.00028516,30]
[425851210,1781994656000,-159.0,0.00028881,30]
[425851213,1781994656000,-198.0,0.00028881,30]
[425851259,1781994657000,-500.0,0.00029863,60]
[425851266,1781994657000,-500.0,0.00029863,60]
[425851262,1781994657000,-500.0,0.00029863,60]
[425851261,1781994657000,-500.0,0.00029863,60]
[425851269,1781994657000,-500.0,0.00029863,60]
[425851268,1781994657000,-500.0,0.00029863,60]
[425851263,1781994657000,-500.0,0.00029863,60]
[425851270,1781994657000,-500.0,0.00029863,60]
[425851265,1781994657000,-500.0,0.00029863,60]
[425851277,1781994657000,-500.0,0.00029863,60]
[425851267,1781994657000,-500.0,0.00029863,60]
[425851271,1781994657000,-500.0,0.00029863,60]
[425851272,1781994657000,-500.0,0.00029863,60]
[425851273,1781994657000,-500.0,0.00029863,60]
[425851274,1781994657000,-500.0,0.00029863,60]
[425851275,1781994657000,-500.0,0.00029863,60]
[425851276,1781994657000,-500.0,0.00029863,60]
[425851278,1781994657000,-500.0,0.00029863,60]
[425851260,1781994657000,-187.46172409,0.00029863,30]
[425851264,1781994657000,-500.0,0.00029863,60]
[425851256,1781994657000,-500.0,0.00029863,60]
[425851238,1781994657000,-33853.31211685,0.0002967,2]
[425851251,1781994657000,-500.0,0.00029863,60]
[425851280,1781994657000,-500.0,0.00029863,60]
[425851237,1781994657000,-644.79446245,0.00029625,2]
[425851247,1781994657000,-500.0,0.00029863,60]
[425851245,1781994657000,-500.0,0.00029863,60]
[425851244,1781994657000,-176.50525957,0.00029863,60]
[425851236,1781994657000,-3647.0,0.00029575,2]
[425851246,1781994657000,-500.0,0.00029863,60]
[425851242,1781994657000,-500.0,0.00029863,60]
[425851241,1781994657000,-1111.11,0.00029825,30]
[425851257,1781994657000,-500.0,0.00029863,30]
[425851240,1781994657000,-1500.0,0.0002972,10]
[425851243,1781994657000,-500.0,0.00029863,60]
[425851248,1781994657000,-500.0,0.00029863,60]
[425851250,1781994657000,-500.0,0.00029863,60]
[425851249,1781994657000,-500.0,0.00029863,60]
[425851252,1781994657000,-500.0,0.00029863,60]
[425851258,1781994657000,-500.0,0.00029863,60]
[425851254,1781994657000,-500.0,0.00029863,30]
[425851255,1781994657000,-500.0,0.00029863,60]
[425851253,1781994657000,-500.0,0.00029863,60]
[425851239,1781994657000,-1111.11,0.00029688,30]
[425851279,1781994657000,-500.0,0.00029863,60]
[425851281,1781994657000,-500.0,0.00029863,60]
[425851282,1781994657000,-410.0,0.00029863,60]
[425851309,1781994657000,-151.0,0.00030379,2]
[425851311,1781994657000,-22057.5541385,0.00030408,2]
[425851322,1781994657000,-199.45913932,0.00030708,6]
[425851310,1781994657000,-433175.2933898,0.00030408,2]
[425851321,1781994657000,-3995.29118651,0.000306,2]
[425851312,1781994657000,-28539.5545718,0.00030408,2]
[425851313,1781994657000,-199.0,0.00030411,120]
[425851314,1781994657000,-291.07,0.00030411,2]
[425851315,1781994657000,-2110.0,0.000305,2]
[425851308,1781994657000,-151.65,0.00030379,2]
[425851319,1781994657000,-259.25926,0.0003057,9]
[425851317,1781994657000,-166.72516057,0.00030539,2]
[425851320,1781994657000,-193.13,0.00030589,2]
[425851316,1781994657000,-483.78,0.000305,7]
[425851323,1781994657000,-166.72516057,0.00030719,2]
[425851324,1781994657000,-250.0,0.00030723,17]
[425851325,1781994657000,-250.0,0.00030723,17]
[425851327,1781994657000,-900.0,0.000308,11]
[425851328,1781994657000,-164542.22983197,0.000308,2]
[425851326,1781994657000,-508.0,0.00030769,12]
[425851318,1781994657000,-500.0,0.00030543,2]
[425851298,1781994657000,-1111.11,0.00029963,30]
[425851307,1781994657000,-151.0,0.00030379,2]
[425851306,1781994657000,-151.41,0.00030378,2]
[425851287,1781994657000,-385.0,0.00029881,30]
[425851285,1781994657000,-159.0,0.00029881,30]
[425851296,1781994657000,-700.0,0.000299,10]
[425851288,1781994657000,-198.0,0.00029881,30]
[425851284,1781994657000,-156.0,0.00029881,30]
[425851295,1781994657000,-162.0,0.00029894,30]
[425851286,1781994657000,-155.0,0.00029881,30]
[425851289,1781994657000,-155.0,0.00029894,30]
[425851305,1781994657000,-166.72516057,0.00030358,2]
[425851292,1781994657000,-151.0,0.00029894,30]
[425851294,1781994657000,-152.0,0.00029894,30]
[425851291,1781994657000,-151.0,0.00029894,30]
[425851293,1781994657000,-184.0,0.00029894,30]
[425851297,1781994657000,-17877.46475885,0.00029949,2]
[425851299,1781994657000,-1000.0,0.0003,7]
[425851301,1781994657000,-229.51988224,0.00030135,2]
[425851300,1781994657000,-1111.11,0.000301,30]
[425851303,1781994657000,-157.23,0.000302,7]
[425851304,1781994657000,-150.0,0.00030206,2]
[425851302,1781994657000,-166.72516057,0.00030177,2]
[425851290,1781994657000,-184.0,0.00029894,30]
[425851283,1781994657000,-153.0,0.00029876,30]
[425851331,1781994658000,-35.64427946,0.000308,2]
[425851329,1781994658000,-756.25314075,0.000308,2]
[425851330,1781994658000,-479.37730757,0.000308,2]
[425851332,1781994662000,150.0,0.00013927,2]
[425851333,1781994729000,7368.099469,7.945e-05,2]
[425851335,1781994935000,-67.68536206,0.00013758,2]
[425851336,1781994952000,-150.0,0.00013758,2]
[425851338,1781994987000,-320.0,0.00013797,2]
[425851339,1781995006000,-318.0,0.00013797,2]
[425851340,1781995006000,-154.45452548,0.00013797,2]
[425851341,1781995041000,-201.30179286,0.00013727,2]
[425851343,1781995058000,-160.81334666,0.00013727,2]
[425851344,1781995094000,-65.92209522,0.00013727,2]
[425851345,1781995112000,-971.29331867,0.00013727,2]
[425851346,1781995130000,-823.8697,0.00013698,2]
[425851347,1781995180000,-1541.6,0.00013699,2]
[425851348,1781995226000,-500.0,0.00013726,2]
[425851349,1781995271000,-160.81334666,0.00013726,2]
[425851351,1781995318000,-28.70668133,0.00013727,2]
[425851352,1781995363000,-151.0,0.00013685,2]
[425851354,1781995600000,-231.01231914,0.00013726,2]
[425851355,1781995654000,-500.0,0.00013726,2]
[425851357,1781995707000,-273.48648571,0.00013726,2]
[425851358,1781995761000,-161.7086234,0.00013697,2]
[425851359,1781995815000,-500.0,0.00013697,2]
[425851387,1781995831000,-310.0,0.00013797,2]
[425851393,1781995831000,-500.0,0.00013797,2]
[425851391,1781995831000,-1000.0,0.00013797,2]
[425851388,1781995831000,-318.0,0.00013797,2]
[425851384,1781995831000,-350.63655975,0.00013727,2]
[425851379,1781995831000,-151.0,0.00013726,2]
[425851385,1781995831000,-159.54547452,0.00013797,2]
[425851383,1781995831000,-317.0,0.00013727,2]
[425851382,1781995831000,-270.950115,0.00013727,2]
[425851380,1781995831000,-1000.0,0.00013727,2]
[425851377,1781995831000,-151.0,0.00013726,2]
[425851381,1781995831000,-1000.0,0.00013727,2]
[425851376,1781995831000,-150.0,0.00013726,2]
[425851378,1781995831000,-153.0,0.00013726,2]
[425851363,1781995831000,-160.0,0.00013697,2]
[425851375,1781995831000,-152.0,0.00013726,2]
[425851373,1781995831000,-151.0,0.00013726,2]
[425851372,1781995831000,-151.0,0.00013726,2]
[425851370,1781995831000,-151.0,0.00013726,2]
[425851368,1781995831000,-152.0,0.00013726,2]
[425851371,1781995831000,-152.0,0.00013726,2]
[425851367,1781995831000,-2287.16164299,0.00013726,2]
[425851369,1781995831000,-151.0,0.00013726,2]
[425851366,1781995831000,-6811.3779,0.00013698,2]
[425851365,1781995831000,-36546.93964573,0.00013698,2]
[425851362,1781995831000,-346.3705459,0.00013697,2]
[425851361,1781995831000,-541.44053999,0.00013697,2]
[425851389,1781995831000,-316.0,0.00013797,2]
[425851374,1781995831000,-150.0,0.00013726,2]
[425851386,1781995831000,-313.0,0.00013797,2]
[425851364,1781995831000,-158.60045427,0.00013698,2]
[425851392,1781995831000,-472.45452548,0.00013797,2]
[425851390,1781995831000,-312.0,0.00013797,2]
[425851422,1781995831000,-500.0,0.00013827,2]
[425851423,1781995831000,-160.0,0.00013837,2]
[425851419,1781995831000,-309.0,0.00013827,2]
[425851420,1781995831000,-313.0,0.00013827,2]
[425851417,1781995831000,-315.0,0.00013827,2]
[425851418,1781995831000,-151.0,0.00013827,2]
[425851411,1781995831000,-151.0,0.00013827,2]
[425851415,1781995831000,-310.0,0.00013827,2]
[425851412,1781995831000,-318.0,0.00013827,2]
[425851416,1781995831000,-309.0,0.00013827,2]
[425851413,1781995831000,-320.0,0.00013827,2]
[425851414,1781995831000,-150.0,0.00013827,2]
[425851410,1781995831000,-311.0,0.00013827,2]
[425851409,1781995831000,-320.0,0.00013827,2]
[425851421,1781995831000,-153.0,0.00013827,2]
[425851408,1781995831000,-677.91,0.00013826,2]
[425851407,1781995831000,-677.91,0.00013826,2]
[425851396,1781995831000,-677.91,0.00013797,2]
[425851395,1781995831000,-500.0,0.00013797,2]
[425851401,1781995831000,-500.0,0.00013826,2]
[425851400,1781995831000,-517.14256691,0.00013826,2]
[425851402,1781995831000,-536.2198577,0.00013826,2]
[425851394,1781995831000,-500.0,0.00013797,2]
[425851397,1781995831000,-400.0,0.000138,5]
[425851399,1781995831000,-500.0,0.00013826,2]
[425851398,1781995831000,-500.0,0.00013826,2]
[425851405,1781995831000,-500.0,0.00013826,2]
[425851404,1781995831000,-500.0,0.00013826,2]
[425851403,1781995831000,-500.0,0.00013826,2]
[425851406,1781995831000,-677.91,0.00013826,2]
[425851463,1781995832000,-157.3509639,0.00016,2]
[425851466,1781995832000,-172.1,0.00016438,2]
[425851461,1781995832000,-2287.16164291,0.00015634,2]